bitfinex-derivatives/quotes_ETHF0:USTF0_20241230
["timestamp","ask_amount","ask_price","bid_price","bid_amount"]
[1735527079591,0.29348,3414.4,3414.2,0.29348]
[1735527079791,0.29348,3414.4,3414.3,0.29348]
[1735527079997,0.29346,3414.6,3414.1,3.2078]
[1735527080290,4.59770605,3414.7,3414.5,0.29346]
[1735527080487,4.30425605,3414.7,3414.6,0.29346]
[1735527080991,3.44085605,3414.7,3414.6,0.29346]
[1735527081189,3.44085605,3414.7,3414.6,3.50126]
[1735527081886,5.02305605,3415.3,3415.0,0.29342]
[1735527082586,0.29341,3415.2,3415.0,0.29342]
[1735527085196,0.29341,3415.1,3415.0,0.29342]
[1735527085891,4.72965605,3415.3,3414.7,40.8]
[1735527086088,0.29342,3415.0,3414.6,0.8937]
[1735527086289,0.29342,3415.0,3414.9,0.29343]
[1735527086490,4.72965605,3415.3,3414.9,0.29343]
[1735527086794,0.29342,3415.1,3414.9,0.29343]
[1735527087605,0.29342,3415.0,3414.9,0.29343]
[1735527087800,0.29343,3414.9,3414.6,0.8937]
[1735527087999,0.29343,3414.9,3414.6,0.4554]
[1735527088193,0.4328,3414.8,3414.7,0.29345]
[1735527090704,0.29343,3414.9,3414.8,0.29344]
[1735527090904,0.29342,3415.0,3414.8,0.29344]
[1735527091301,0.29342,3415.0,3414.9,0.29343]
[1735527091506,3.85665605,3415.1,3414.6,0.4554]
[1735527091703,4.15007605,3415.1,3415.0,0.29342]
[1735527091907,4.15007605,3415.1,3414.6,0.4554]
[1735527092113,0.4333,3415.0,3414.9,0.29342]
[1735527092312,0.72672,3415.0,3414.9,0.29342]
[1735527092611,0.72672,3415.0,3414.9,0.29343]
[1735527092811,0.4333,3415.0,3414.9,0.29343]
[1735527094312,0.72672,3415.0,3414.9,0.29343]
[1735527095312,0.4333,3415.0,3414.9,0.29343]
[1735527095810,0.4333,3415.0,3414.6,0.4554]
[1735527096011,3.93453,3415.0,3414.9,0.29343]
[1735527096210,0.72673,3415.0,3414.9,0.29343]
[1735527096912,0.29344,3414.8,3414.7,0.29344]
[1735527097325,3.6411,3415.0,3414.5,0.29346]
[1735527097622,0.29346,3414.6,3414.5,0.29346]
[1735527097920,0.29346,3414.5,3414.4,0.29347]
[1735527098118,0.29347,3414.4,3414.3,7.21292521]
[1735527098426,0.73707,3414.4,3414.3,6.91944521]
[1735527098722,0.29349,3414.3,3414.1,0.29349]
[1735527099120,0.4436,3414.4,3414.0,6.91944521]
[1735527099320,0.73708,3414.4,3414.2,0.29348]
[1735527099820,0.4436,3414.4,3414.3,0.29348]
[1735527100617,0.73708,3414.4,3414.2,0.29349]
[1735527101625,0.29348,3414.3,3414.2,0.29349]
[1735527101827,0.29349,3414.2,3413.8,10.99174521]
[1735527102026,0.29349,3414.3,3414.1,0.2935]
[1735527102226,0.73708,3414.4,3414.2,0.29349]
[1735527102620,0.4436,3414.4,3413.8,10.99174521]
[1735527102919,0.29349,3414.2,3414.0,0.2935]
[1735527103124,0.4153,3414.1,3414.0,0.2935]
[1735527103320,0.7088,3414.1,3413.9,41.09351]
[1735527103527,0.4153,3414.1,3414.0,0.29351]
[1735527105127,0.4153,3414.1,3413.8,3.50132]
[1735527105329,0.29352,3413.9,3413.8,3.50132]
[1735527105517,0.29353,3413.8,3413.6,41.09354]
[1735527105720,0.29353,3413.8,3413.5,6.91944521]
[1735527105721,0.4332,3413.8,3413.5,6.91944521]
[1735527105921,0.29353,3413.7,3413.5,6.91944521]
[1735527106119,0.29354,3413.6,3413.5,6.91944521]
[1735527106819,0.4332,3413.8,3413.3,3.2078]
[1735527107023,0.29354,3413.7,3413.5,0.29355]
[1735527107821,0.29355,3413.6,3413.4,0.29355]
[1735527108026,0.4332,3413.8,3413.3,3.2078]
[1735527108229,0.29355,3413.5,3413.3,3.50136]
[1735527108829,0.29355,3413.5,3413.3,0.29356]
[1735527109023,0.29355,3413.5,3413.3,3.50136]
[1735527109224,0.29355,3413.5,3413.4,0.29356]
[1735527110227,0.29355,3413.5,3413.3,3.50137]
[1735527111531,0.29355,3413.6,3413.4,0.29355]
[1735527111731,0.29355,3413.6,3413.5,0.29355]
[1735527112227,0.29355,3413.6,3413.3,3.2078]
[1735527112436,0.29355,3413.6,3413.4,0.29355]
[1735527112834,0.29355,3413.6,3413.5,0.29355]
[1735527113729,0.29354,3413.7,3413.5,0.29355]
[1735527113933,0.4332,3413.8,3413.7,0.29353]
[1735527114329,0.72672,3413.8,3413.7,0.29353]
[1735527114833,0.4332,3413.8,3413.7,0.29353]
[1735527115027,2.29772698,3413.9,3413.8,0.29352]
[1735527116134,0.71501,3414.0,3413.4,0.4413]
[1735527116330,0.71501,3414.0,3413.9,0.29352]
[1735527117029,3.92281,3414.0,3413.9,0.29352]
[1735527117432,4.37001,3414.0,3413.9,0.29352]
[1735527117628,2.29772698,3414.1,3414.0,0.29351]
[1735527118937,0.4472,3414.3,3413.6,3.52262718]
[1735527119236,0.4472,3414.3,3414.2,0.29349]
[1735527119937,0.4472,3414.3,3413.6,2.78876718]
[1735527120238,0.74069,3414.3,3414.1,0.29349]
[1735527120436,3.50128,3414.4,3413.7,1.02737]
[1735527120634,3.50128,3414.4,3414.2,0.29348]
[1735527121036,0.29349,3414.3,3414.1,0.29349]
[1735527121238,0.29349,3414.3,3413.6,2.78876718]
[1735527121540,3.2078,3414.4,3414.2,0.29349]
[1735527121740,3.50128,3414.4,3414.2,0.29349]
[1735527124344,3.2078,3414.4,3413.6,3.52262718]
[1735527124641,0.29349,3414.3,3413.6,2.78876718]
[1735527124941,0.29349,3414.3,3414.2,0.29349]
[1735527125641,3.95508,3414.4,3414.2,0.29349]
[1735527126345,0.74728,3414.4,3414.2,0.29349]
[1735527126739,3.95508,3414.4,3414.2,0.29349]
[1735527127442,0.29348,3414.3,3414.2,0.29349]
[1735527127938,3.95508,3414.4,3414.2,0.29349]
[1735527128132,0.29348,3414.3,3414.2,0.29349]
[1735527128339,3.6616,3414.4,3413.6,3.6534]
[1735527128538,3.6616,3414.4,3414.1,0.2935]
[1735527128748,0.29349,3414.2,3414.1,0.2935]
[1735527129643,0.29349,3414.2,3413.6,0.4456]
[1735527129845,0.7139,3414.1,3414.0,0.2935]
[1735527130142,0.29352,3413.9,3413.6,0.4456]
[1735527130338,0.4343,3413.8,3413.7,0.29353]
[1735527136053,2.29772698,3414.2,3413.6,3.52262718]
[1735527136243,2.29772698,3414.2,3414.1,0.2935]
[1735527136947,3.2078,3414.3,3414.2,0.29349]
[1735527137146,3.50128,3414.3,3414.2,0.29349]
[1735527137646,0.29348,3414.3,3414.2,0.29349]
[1735527138045,0.29349,3414.2,3414.0,0.2935]
[1735527138355,0.29349,3414.2,3414.1,0.2935]
[1735527138556,2.29772698,3414.3,3414.1,0.2935]
[1735527138756,2.59121698,3414.3,3414.2,0.29349]
[1735527139056,2.29772698,3414.3,3414.2,0.29349]
[1735527139260,2.59120698,3414.3,3414.2,0.29349]
[1735527139459,2.59120698,3414.3,3413.7,45.40546352]
[1735527139659,2.29772698,3414.2,3414.1,0.29349]
[1735527142255,3.73433605,3414.3,3414.1,0.29349]
[1735527143063,0.29349,3414.2,3414.1,0.29349]
[1735527143253,0.2935,3414.1,3413.9,0.29351]
[1735527143457,0.4237,3414.0,3413.9,0.29351]
[1735527144265,0.4237,3414.0,3413.8,4.60546352]
[1735527144466,0.73742,3413.9,3413.8,4.60546352]
[1735527145667,0.4439,3413.9,3413.6,3.2078]
[1735527145866,0.29353,3413.7,3413.6,3.2078]
[1735527146464,0.29353,3413.7,3413.6,0.29354]
[1735527146663,0.29354,3413.6,3413.5,4.60546352]
[1735527146863,0.29354,3413.6,3413.5,4.89901352]
[1735527147062,0.29354,3413.6,3413.5,0.29355]
[1735527149166,0.29355,3413.5,3413.4,4.60546352]
[1735527149459,0.29355,3413.5,3413.4,4.89902352]
[1735527149661,0.29355,3413.5,3413.4,4.60546352]
[1735527149859,0.29355,3413.5,3413.3,4.89903352]
[1735527150066,1.16346,3413.4,3413.3,4.60546352]
[1735527151169,4.33131685,3413.4,3413.0,4.60546352]
[1735527151362,0.29358,3413.1,3413.0,4.60546352]
[1735527151664,0.29358,3413.2,3413.0,4.89905352]
[1735527151859,0.29358,3413.1,3413.0,4.60546352]
[1735527154169,0.2936,3413.0,3412.8,3.5014]
[1735527154471,2.30406481,3413.1,3412.8,3.2078]
[1735527154472,0.2936,3412.9,3412.8,3.2078]
[1735527154770,0.4252,3412.9,3412.8,3.50141]
[1735527155869,2.30406481,3413.1,3412.8,3.2078]
[1735527156064,2.30406481,3413.1,3413.0,0.29359]
[1735527156571,2.30406481,3413.1,3413.0,41.09359]
[1735527156760,3.14066481,3413.2,3413.1,0.29358]
[1735527157273,3.14066481,3413.2,3413.0,0.29359]
[1735527157474,3.43424481,3413.2,3413.0,0.29359]
[1735527157970,0.8366,3413.2,3413.1,0.29358]
[1735527159672,0.8366,3413.2,3412.7,45.40546352]
[1735527159873,1.13018,3413.2,3413.0,0.29359]
[1735527160376,0.29359,3413.1,3412.9,0.2936]
[1735527162875,0.8366,3413.2,3412.7,2.34316718]
[1735527163070,1.13018,3413.2,3413.0,0.29359]
[1735527163271,2.30406481,3413.3,3413.2,0.29358]
[1735527163875,2.30406481,3413.3,3413.2,0.74028]
[1735527164074,2.30406481,3413.4,3413.3,0.29357]
[1735527165780,0.8513,3413.6,3413.5,0.29355]
[1735527169589,3.2078,3413.9,3413.7,0.29353]
[1735527169887,3.6283,3413.9,3413.2,5.05216352]
[1735527170087,2.30406481,3414.0,3413.6,3.2078]
[1735527170390,2.30406481,3414.0,3413.9,0.29352]
[1735527170987,2.30406481,3414.2,3414.1,0.2935]
[1735527171687,4.78318,3414.4,3414.2,0.29349]
[1735527171886,4.4897,3414.4,3413.8,0.4434]
[1735527172085,0.29349,3414.3,3414.0,0.2935]
[1735527172489,0.29349,3414.3,3414.1,0.29349]
[1735527173193,2.59711339,3414.3,3414.1,0.29349]
[1735527176087,2.30362339,3414.3,3413.8,0.4434]
[1735527176391,0.29349,3414.2,3413.9,0.29351]
[1735527176591,0.29349,3414.2,3414.0,0.29351]
[1735527177092,2.30362339,3414.1,3414.0,0.29351]
[1735527178090,2.30362339,3414.2,3414.0,0.29351]
[1735527179298,2.59711339,3414.2,3414.0,0.29351]
[1735527179497,0.29349,3414.2,3414.0,0.29351]
[1735527180898,2.30362339,3414.3,3413.5,8.26611511]
[1735527181093,0.29352,3413.8,3413.7,0.29353]
[1735527181400,0.29352,3413.9,3413.7,0.29353]
[1735527181599,1.2818,3413.8,3413.7,0.29353]
[1735527184000,0.8686,3413.8,3413.7,0.29353]
[1735527185408,0.445,3413.8,3413.7,0.29353]
[1735527186110,0.73852,3413.8,3413.7,0.29353]
[1735527186308,0.445,3413.8,3413.7,0.29353]
[1735527187408,2.72022339,3414.0,3413.9,0.29352]
[1735527188008,0.4166,3414.0,3413.9,0.29352]
[1735527194115,0.71011,3414.0,3413.9,0.29352]
[1735527194320,0.29352,3413.9,3413.8,0.29352]
[1735527194616,0.71011,3414.0,3413.8,0.29352]
[1735527195411,3.01373339,3414.0,3413.8,0.29352]
[1735527197211,0.29352,3413.9,3413.8,0.29352]
[1735527197509,3.01373339,3414.0,3413.9,0.29352]
[1735527198517,3.01373339,3414.0,3413.8,0.29352]
[1735527198718,2.72022339,3414.0,3413.8,0.29352]
[1735527199013,0.29352,3413.9,3413.8,0.29352]
[1735527199414,2.72022339,3414.0,3413.4,5.02931511]
[1735527199619,2.72022339,3414.0,3413.6,0.29354]
[1735527199821,0.29353,3413.7,3413.6,0.29354]
[1735527200317,2.72022339,3414.0,3413.4,0.423]
[1735527200524,0.29355,3413.6,3413.5,0.29355]
[1735527200910,2.30362339,3413.8,3413.3,8.23261511]
[1735527201119,0.71584,3413.7,3413.6,0.29354]
[1735527202319,0.29354,3413.6,3413.5,0.29355]
[1735527203823,5.93372339,3413.7,3413.5,0.29355]
[1735527204120,6.22726339,3413.7,3413.5,0.29355]
[1735527204319,3.01946339,3413.7,3413.5,0.29355]
[1735527204521,6.22726339,3413.7,3413.5,0.29355]
[1735527204718,6.22726339,3413.7,3413.3,5.02481511]
[1735527204918,6.22726339,3413.7,3413.6,0.29354]
[1735527206326,3.92364,3413.7,3413.6,0.29354]
[1735527207517,7.37907509,3413.7,3413.6,0.29354]
[1735527208321,7.37907509,3413.7,3413.4,4.60631511]
[1735527208322,7.08553509,3413.7,3413.4,4.60631511]
[1735527208719,0.29355,3413.5,3413.4,4.60631511]
[1735527210120,0.29357,3413.3,3413.1,4.89989511]
[1735527210320,0.73978,3413.2,3413.1,4.89989511]
[1735527211428,0.73978,3413.2,3413.0,4.60631511]
[1735527211429,0.29358,3413.1,3413.0,4.60631511]
[1735527213021,4.90082679,3413.1,3412.9,0.2936]
[1735527214035,3.89580525,3413.0,3412.9,0.2936]
[1735527214222,4.18939525,3413.0,3412.9,0.2936]
[1735527214923,4.18939525,3413.0,3412.8,0.29361]
[1735527215130,0.4286,3412.9,3412.8,0.29361]
[1735527216519,3.45523277,3413.0,3412.5,3.2078]
[1735527216520,2.30258579,3413.0,3412.9,0.2936]
[1735527217329,2.30258579,3413.0,3412.9,44.3014]
[1735527217517,2.30258579,3413.0,3412.9,41.0936]
[1735527217923,2.30258579,3413.0,3412.9,0.2936]
[1735527218129,0.8915,3413.2,3413.1,0.29358]
[1735527228830,1.18508,3413.2,3413.1,0.29358]
[1735527229135,0.8915,3413.2,3412.9,0.869]
[1735527229337,0.29359,3413.1,3413.0,0.29359]
[1735527230837,0.8915,3413.2,3412.7,4.60631511]
[1735527231045,1.18508,3413.2,3413.1,0.29358]
[1735527231343,0.8915,3413.2,3413.1,0.29358]
[1735527232738,2.59615579,3413.3,3413.2,0.29358]
[1735527232940,3.45665579,3413.3,3413.2,0.29358]
[1735527234043,3.16308579,3413.3,3412.7,4.60631511]
[1735527234241,0.29358,3413.2,3413.1,0.29358]
[1735527235244,0.29358,3413.2,3413.0,0.29359]
[1735527235444,0.29358,3413.2,3412.7,4.60631511]
[1735527235743,0.29358,3413.2,3413.1,0.29358]
[1735527235937,3.16308579,3413.3,3412.7,4.60631511]
[1735527236143,3.16308579,3413.3,3413.2,0.29358]
[1735527236632,2.74228579,3413.3,3413.2,0.29358]
[1735527236837,3.62028579,3413.3,3413.2,0.29358]
[1735527238545,1.3177,3413.3,3413.2,0.29358]
[1735527239948,1.61128,3413.3,3413.2,0.29358]
[1735527240248,1.3177,3413.3,3412.8,4.60631511]
[1735527240542,0.29359,3413.2,3413.1,0.2936]
[1735527241246,2.594524,3413.2,3413.1,0.2936]
[1735527242242,0.29359,3413.2,3413.1,0.2936]
[1735527242443,5.06652277,3413.3,3413.1,0.2936]
[1735527242639,0.29359,3413.2,3413.1,0.2936]
[1735527243950,4.77293277,3413.3,3413.1,0.2936]
[1735527244154,5.06652277,3413.3,3413.2,0.29359]
[1735527244350,4.77293277,3413.3,3412.8,4.60631511]
[1735527244549,3.50142,3413.0,3412.8,4.89993511]
[1735527245050,0.451,3412.9,3412.8,4.89993511]
[1735527246351,0.451,3412.9,3412.7,0.29363]
[1735527246557,0.4373,3412.8,3412.7,0.29363]
[1735527247456,2.73898717,3412.8,3412.7,0.29363]
[1735527247748,3.03261717,3412.8,3412.7,0.29363]
[1735527247957,2.73898717,3412.8,3412.7,0.29363]
[1735527249654,3.03261717,3412.8,3412.7,0.29363]
[1735527250161,3.17498717,3412.8,3412.5,4.60631511]
[1735527250458,0.29364,3412.7,3412.6,0.29364]
[1735527250651,0.8733,3412.8,3412.5,4.60631511]
[1735527250850,0.29364,3412.6,3412.5,4.89996511]
[1735527251256,0.29364,3412.7,3412.6,0.29364]
[1735527251449,0.8733,3412.8,3412.7,0.29363]
[1735527251660,3.2078,3413.0,3412.5,4.60631511]
[1735527251661,4.60724679,3413.0,3412.9,0.29362]
[1735527251960,4.60724679,3413.0,3412.9,2.64317203]
[1735527252151,4.60724679,3413.0,3412.9,43.44317203]
[1735527252852,2.30331562,3413.2,3413.1,0.2936]
[1735527253759,2.30331562,3413.2,3413.1,4.91100352]
[1735527254260,2.30331562,3413.2,3413.1,5.22590352]
[1735527254555,1.92210463,3413.2,3413.1,5.22590352]
[1735527254858,3.43488907,3413.3,3413.1,13.14010352]
[1735527255053,3.43488907,3413.4,3413.3,0.29358]
[1735527255359,3.43488907,3413.4,3413.3,0.74228]
[1735527256255,0.4298,3414.0,3413.3,15.0180931]
[1735527256464,0.4298,3414.0,3413.9,0.29353]
[1735527267165,0.4405,3414.2,3413.6,0.315]
[1735527267368,0.4405,3414.2,3414.1,0.29352]
[1735527268463,4.60724679,3414.5,3414.0,3.6478]
[1735527268762,5.75905849,3414.7,3414.6,0.29348]
[1735527268763,4.60724679,3414.7,3414.6,0.29348]
[1735527268958,4.60724679,3414.7,3414.6,41.09348]
[1735527270362,0.8402,3415.0,3414.9,0.29346]
[1735527271255,3.6339,3415.2,3415.1,0.29344]
[1735527271460,3.6339,3415.2,3415.1,2.64299203]
[1735527272259,3.6339,3415.2,3415.1,0.29344]
[1735527272960,0.4261,3415.2,3415.1,0.29344]
[1735527277967,0.4261,3415.2,3414.9,0.29345]
[1735527278164,0.4261,3415.2,3415.1,0.29344]
[1735527288271,0.8969,3415.5,3415.4,0.29341]
[1735527289669,1.3341,3415.5,3415.4,0.29341]
[1735527291377,0.4372,3415.8,3415.7,0.29339]
[1735527291572,0.4372,3415.8,3415.7,2.64294203]
[1735527291875,0.4372,3415.8,3415.7,43.44294203]
[1735527297376,0.4372,3415.8,3415.7,0.29339]
[1735527298079,0.4372,3415.8,3415.7,2.64294203]
[1735527298681,0.4372,3415.8,3415.6,0.29339]
[1735527298977,0.4473,3415.7,3415.6,0.29339]
[1735527299274,0.74069,3415.7,3415.6,0.29339]
[1735527299479,0.4473,3415.7,3415.6,0.29339]
[1735527300184,0.4473,3415.7,3415.4,40.8]
[1735527300375,0.74069,3415.7,3415.5,0.2934]
[1735527300876,0.4473,3415.7,3415.1,2.34955203]
[1735527301184,0.4473,3415.7,3415.6,0.29339]
[1735527301582,5.04433825,3415.7,3415.1,2.34955203]
[1735527301876,5.04433825,3415.7,3415.6,0.29339]
[1735527302176,4.59703825,3415.7,3415.6,0.29339]
[1735527302375,4.59703825,3415.7,3415.1,2.58062252]
[1735527302679,5.02653825,3415.7,3415.2,40.8]
[1735527302874,5.02653825,3415.7,3415.6,0.29339]
[1735527303280,5.46676602,3415.7,3415.6,0.29339]
[1735527306482,6.28829358,3415.7,3415.5,0.2934]
[1735527306678,6.28829358,3415.7,3415.6,0.29339]
[1735527307172,5.99490358,3415.7,3415.6,0.29339]
[1735527307574,0.4295,3415.7,3415.6,0.29339]
[1735527308886,0.86972777,3415.7,3415.6,0.29339]
[1735527310186,5.46376546,3415.7,3415.6,0.29339]
[1735527310885,5.46376546,3415.7,3415.2,40.8]
[1735527311084,5.46376546,3415.7,3415.6,0.29339]
[1735527311285,6.00089033,3415.7,3415.6,0.29339]
[1735527311980,6.29428033,3415.7,3415.6,0.29339]
[1735527312288,6.00089033,3415.7,3415.6,0.29339]
[1735527312487,0.4295,3415.7,3415.6,0.29339]
[1735527313086,0.72289,3415.7,3415.6,0.29339]
[1735527313286,0.4295,3415.7,3415.6,0.29339]
[1735527313679,6.00089033,3415.7,3415.6,0.29339]
[1735527313885,0.29339,3415.6,3415.5,1.3245088]
[1735527314085,6.29428033,3415.7,3415.6,0.29339]
[1735527314782,6.00089033,3415.7,3415.2,40.8]
[1735527315086,6.00089033,3415.7,3415.1,1.0311088]
[1735527315087,0.29343,3415.3,3415.1,1.0311088]
[1735527315394,0.4569,3415.2,3415.1,1.3245488]
[1735527315688,0.8866,3415.2,3415.1,1.3245488]
[1735527316086,1.18003,3415.2,3415.1,1.3245488]
[1735527316286,0.29345,3415.0,3414.9,0.29345]
[1735527316785,0.4258,3415.1,3414.7,2.3465025]
[1735527316984,0.29347,3414.8,3414.6,40.8]
[1735527317185,0.4281,3414.7,3414.6,41.09348]
[1735527317384,0.8616,3414.7,3414.6,41.09348]
[1735527318890,1.15507,3414.7,3414.6,41.09348]
[1735527319293,9.0694,3414.7,3414.0,4.59733266]
[1735527319487,0.29353,3414.1,3413.8,4.59733266]
[1735527319682,1.3156,3414.0,3413.9,0.29354]
[1735527319989,1.60914,3414.0,3413.8,4.89088266]
[1735527320688,1.3156,3414.0,3413.8,4.89088266]
[1735527321090,5.04052991,3413.9,3413.8,0.29355]
[1735527322684,0.44022777,3413.9,3413.8,0.29355]
[1735527323795,3.88451921,3413.9,3413.8,0.29355]
[1735527324388,3.88451921,3413.9,3413.8,41.09355]
[1735527325085,3.44429144,3413.9,3413.8,41.09355]
[1735527325992,3.44429144,3413.9,3413.8,43.4400525]
[1735527326488,3.44429144,3414.1,3414.0,0.29353]
[1735527327494,3.73779144,3414.4,3414.2,0.29351]
[1735527327885,3.44429144,3414.4,3413.9,3.2078]
[1735527328196,3.2078,3414.2,3413.1,3.2078]
[1735527328398,3.2078,3414.2,3413.3,2.3465025]
[1735527328399,0.29355,3413.8,3413.3,2.3465025]
[1735527328693,0.29355,3413.8,3413.6,0.29356]
[1735527329296,1.19134,3414.0,3413.7,0.29355]
[1735527329498,0.29354,3413.9,3413.7,0.29355]
[1735527330198,1.19134,3414.0,3413.7,0.29355]
[1735527330503,3.73782144,3414.1,3413.9,0.29354]
[1735527330995,3.44429144,3414.1,3413.9,0.29354]
[1735527331188,0.4226,3414.0,3413.9,0.29354]
[1735527332392,3.2078,3414.2,3414.1,0.29352]
[1735527332893,3.44429144,3414.3,3414.2,0.29351]
[1735527333392,0.73278,3414.6,3414.5,0.29349]
[1735527333801,6.65209144,3414.7,3414.5,2.3465025]
[1735527334101,6.65209144,3414.7,3414.6,0.72058]
[1735527334798,4.31869144,3415.0,3414.9,0.29345]
[1735527335098,4.31869144,3415.0,3414.5,2.3465025]
[1735527335099,0.29345,3414.9,3414.7,0.29347]
[1735527336292,1.16785,3415.0,3414.8,0.29346]
[1735527336889,0.8744,3415.0,3414.5,2.3465025]
[1735527337305,1.16785,3415.0,3414.8,0.29346]
[1735527337501,0.8744,3415.0,3414.9,0.29345]
[1735527338001,6.64183155,3415.1,3415.0,0.29345]
[1735527338496,3.2078,3415.1,3415.0,0.29345]
[1735527339002,3.2078,3415.1,3415.0,0.70695]
[1735527340303,3.43403155,3415.4,3415.3,0.29342]
[1735527341001,2.99093512,3415.6,3415.3,7.3465025]
[1735527341201,1.15159477,3415.6,3415.5,0.2934]
[1735527341396,4.58398929,3415.9,3415.4,0.6104]
[1735527341598,4.58398929,3415.9,3415.8,2.6398825]
[1735527342904,3.2078,3416.3,3416.2,0.29334]
[1735527343100,3.2078,3416.3,3416.2,2.6398425]
[1735527343498,3.2078,3416.3,3416.2,0.29334]
[1735527343701,3.2078,3416.3,3416.2,41.09334]
[1735527345310,0.4295,3416.7,3416.2,40.8]
[1735527345606,3.6248,3416.8,3416.7,0.2933]
[1735527348402,3.2078,3417.3,3416.7,9.3958]
[1735527348603,9.37098593,3417.7,3417.2,2.3465025]
[1735527348807,9.37098593,3417.7,3417.6,0.29322]
[1735527349203,9.37098593,3417.7,3417.2,2.3465025]
[1735527349414,9.37098593,3417.7,3416.9,2.3465025]
[1735527349709,0.29323,3417.6,3417.2,0.29326]
[1735527349909,9.37098593,3417.7,3416.9,2.3465025]
[1735527350104,0.29325,3417.3,3416.9,0.29328]
[1735527350311,0.8712,3417.2,3416.9,0.29328]
[1735527350908,0.8712,3417.2,3416.7,3.2078]
[1735527351209,0.8712,3417.2,3417.0,0.29328]
[1735527351708,0.8712,3417.2,3417.1,0.29327]
[1735527352003,0.8712,3417.2,3417.0,0.29327]
[1735527352209,0.8712,3417.2,3417.0,2.6397725]
[1735527352405,0.8712,3417.2,3417.1,0.29327]
[1735527353511,0.4214,3417.6,3417.2,0.29326]
[1735527353706,0.4214,3417.6,3417.4,0.29324]
[1735527354105,0.4214,3417.6,3417.1,2.7838548]
[1735527354613,3.2078,3417.7,3417.4,2.3465025]
[1735527354908,3.2078,3417.7,3417.6,0.29322]
[1735527355916,3.2078,3417.7,3417.4,2.3465025]
[1735527355917,0.4154,3418.0,3417.4,2.3465025]
[1735527356209,3.2078,3418.2,3418.1,0.29318]
[1735527357504,0.8701,3418.4,3418.3,0.29316]
[1735527357706,0.8701,3418.4,3418.3,2.6396625]
[1735527358816,0.8701,3418.4,3418.3,0.29316]
[1735527359010,0.8701,3418.4,3418.0,2.3465025]
[1735527359410,0.8701,3418.4,3418.2,0.29317]
[1735527359610,0.29316,3418.3,3418.0,2.6396825]
[1735527359914,0.8701,3418.4,3418.2,0.29317]
[1735527360415,0.8701,3418.4,3418.2,0.29316]
[1735527360610,0.8701,3418.4,3418.0,2.3465025]
[1735527360611,1.16326,3418.4,3418.1,0.29317]
[1735527361010,1.16326,3418.4,3418.2,0.29317]
[1735527361212,1.16326,3418.4,3418.1,0.29317]
[1735527361913,1.16325,3418.4,3418.1,0.29317]
[1735527364514,1.16325,3418.4,3418.0,2.3465025]
[1735527364711,1.16325,3418.4,3418.2,0.29317]
[1735527365112,1.16325,3418.4,3418.0,2.3465025]
[1735527365407,1.16325,3418.4,3418.1,0.29318]
[1735527365606,0.4487,3418.4,3418.3,0.29316]
[1735527365810,0.4487,3418.4,3418.3,5.8474625]
[1735527366006,0.4469,3418.7,3418.3,5.5543025]
[1735527366215,0.4469,3418.7,3418.6,2.6396325]
[1735527366823,0.4469,3418.7,3418.6,43.4396325]
[1735527368112,0.4546,3419.2,3418.6,43.1465025]
[1735527368313,0.8817,3419.2,3419.1,2.6395925]
[1735527368613,0.4271,3419.2,3419.1,2.6395925]
[1735527370217,3.2078,3419.4,3419.3,0.29307]
[1735527371821,0.4271,3420.0,3419.9,0.29302]
[1735527372015,0.8455,3420.0,3419.9,2.6395225]
[1735527373020,0.8455,3420.0,3419.9,2.3465025]
[1735527373414,0.8455,3420.0,3419.9,2.6395225]
[1735527373716,0.8455,3420.0,3419.9,2.3465025]
[1735527374012,1.13852,3420.0,3419.9,2.3465025]
[1735527374216,0.29304,3419.7,3419.6,2.3465025]
[1735527374921,3.2078,3419.8,3419.3,2.3465025]
[1735527375120,0.29307,3419.4,3419.3,2.3465025]
[1735527376614,0.29309,3419.1,3419.0,2.3465025]
[1735527377608,0.29312,3418.8,3418.7,2.3465025]
[1735527378212,0.29311,3418.9,3418.7,2.3465025]
[1735527378419,0.29311,3418.9,3418.8,2.3465025]
[1735527378614,3.50091,3418.9,3418.8,2.3465025]
[1735527379322,3.2078,3418.9,3418.5,0.29314]
[1735527379526,3.50091,3418.9,3418.8,43.1465025]
[1735527379814,3.50091,3418.9,3418.8,2.3465025]
[1735527380615,3.50091,3418.9,3418.8,43.1465025]
[1735527381518,3.50091,3418.9,3418.8,2.3465025]
[1735527381919,3.2078,3418.9,3418.8,2.3465025]
[1735527382119,3.50091,3418.9,3418.8,2.3465025]
[1735527384019,3.2078,3418.9,3417.9,0.4538]
[1735527384323,3.2078,3418.0,3417.9,0.747]
[1735527385928,3.2078,3418.0,3417.9,2.8003025]
[1735527386222,3.2078,3418.0,3417.9,2.3465025]
[1735527386828,3.2078,3418.0,3417.9,2.6397025]
[1735527388227,3.2078,3418.0,3417.8,1.187]
[1735527388425,3.50099,3418.0,3417.8,3.5335025]
[1735527388724,3.2078,3418.0,3417.9,0.2932]
[1735527389425,3.2078,3418.0,3417.8,3.8267025]
[1735527389833,3.2078,3418.0,3417.9,0.2932]
[1735527390630,3.2078,3418.0,3417.8,3.5335025]
[1735527390838,3.50099,3418.0,3417.8,3.5335025]
[1735527391024,0.4193,3417.9,3417.8,3.5335025]
[1735527391625,0.4193,3417.9,3417.8,3.8267025]
[1735527391831,0.7125,3417.9,3417.8,2.3465025]
[1735527392131,1.1388,3417.9,3417.8,2.3465025]
[1735527392533,0.29321,3417.7,3417.6,40.8]
[1735527393123,0.8456,3417.9,3417.6,40.8]
[1735527393332,0.29321,3417.8,3417.6,40.8]
[1735527393730,0.8456,3417.9,3417.6,40.8]
[1735527393932,0.8456,3417.9,3417.5,2.3465025]
[1735527394133,3.50102,3417.6,3417.5,2.3465025]
[1735527394535,3.50102,3417.6,3417.5,43.1465025]
[1735527394844,3.2078,3417.6,3416.9,2.3465025]
[1735527395027,0.29327,3417.0,3416.9,2.3465025]
[1735527395233,0.29327,3417.1,3416.9,43.1465025]